Cogmind - Beta 11.1 *** ADVENTURER MODE // 2022.09.25 @ 14:35:41 // Winter2019/RPGLIKE Player: SmallBrainBigPP Result: Destroyed by P-80 Master with Gamma Rifle Performance ------------- Evolutions (9) 4500 Regions Visited (28) 5600 Robots Destroyed (446) 2230 Value Destroyed (21107) 21107 Prototype IDs (78) 1560 Alien Tech Used (1) 200 Bonus (17425) 17425 TOTAL SCORE: 52622 Bonus ------- High Alert Combat Kills 2286 Follower Combat Kills 239 Entered DSFs 1000 Aligned with FarCom 300 Met Data Miner 300 Met Imprinter 300 Met Warlord at Base 500 MAIN.C Attacked Warlord 500 Met Warlord at Research 2000 Hacked God Mode 5000 Met MAIN.C 5000 Cogmind --------- Core Integrity 0/2700 Matter 300/300 Energy 700/700 System Corruption 3% Temperature Cool (0) Movement Flying (29) Location -1/Command Parts ------- > --- POWER (2) -------- Vortex Chain Reactor > --- PROPULSION (6) --- Field Propulsion Drive Impulse Thruster Cooled Impulse Thruster Cooled Impulse Thruster > --- UTILITY (11) ----- Triangulator Improved Signal Interpreter Long-range Terrain Scanner Advanced Terrain Scan Processor Advanced Transmission Jammer Advanced ECM Suite Cloaking Device Centrium Medium Armor Plating Graphene Brace Thermal Barrier > --- WEAPON (7) ------- (None) > --- INVENTORY (2) ---- Experimental Shield Generator Advanced Force Field Peak State ------------ > --- POWER ------------ Vortex Chain Reactor > --- PROPULSION ------- Field Propulsion Drive Field Propulsion Drive Field Propulsion Drive Field Propulsion Drive Cooled Impulse Thruster Cooled Impulse Thruster > --- UTILITY ---------- Triangulator Improved Signal Interpreter Long-range Terrain Scanner Advanced Melee Analysis Suite Advanced Transmission Jammer Advanced Reaction Control System Cloaking Device Graphene Brace Thermal Barrier Experimental Shield Generator Improved System Shield > --- WEAPON ----------- Advanced Datajack Scythe Scythe Power Sword Power Sword Phasing Sabre Longsword +1 > --- INVENTORY -------- Advanced Force Field Improved System Restoration Module [Rating: 170] Favorites ----------- Power Micro Nuclear Core Engine Backup Power I Power Core Micro Nuclear Core Reactor Light Antimatter Reactor Propulsion Field Propulsion Drive Wheel Compact Wheel Hover Unit Aerolev Unit Flight Unit Field Propulsion Drive Utility Improved Signal Interpreter Device Trap Scanner Storage Experimental Matter Compressor Processor Improved Signal Interpreter Hackware System Shield Protection Improved Utility Shielding Weapon Katana Energy Gun EM Pulse Gun Launcher Rocket Launcher Special Weapon Advanced Remote Datajack Slashing Weapon Katana Special Melee Weapon Improved Datajack Build | -11 -10 -10 -10 -9 -8 -8 -7 -7 -7 -7 -6 -6 -6 -6 -6 -5 -5 -5 -4 -4 -4 -4 -3 -3 -3 -2 -1 -1 ------- Run | Scr Mat Min Exi Min Mat Sto Fac Low Low Zio Pro Fac Low Low Dat Pro Fac DSF Fac Upp Upp War Pro Res DSF Res Acc Com Slots Evolved 22 | . 4 1 . 1 7 2 3 . . . 1 . . . . . . 1 1 . . . . . 1 . . . Power 1 | . . . . . 1 . . . . . . . . . . . . . . . . . . . . . . . Propulsion 5 | . 1 . . . 2 . 1 . . . . . . . . . . 1 . . . . . . . . . . Utility 10 | . 2 1 . . 3 . 1 . . . 1 . . . . . . . 1 . . . . . 1 . . . Weapon 6 | . 1 . . 1 1 2 1 . . . . . . . . . . . . . . . . . . . . . Parts Attached 171 | 3 6 1 1 7 24 11 14 . . 8 4 14 1 7 . 1 . 10 8 7 2 10 . 8 7 1 . 16 Power 21 | 1 1 . . 1 6 . 1 . . 2 2 4 . . . . . . 1 1 . 1 . . . . . . Engine 2 | 1 . . . . . . . . . 1 . . . . . . . . . . . . . . . . . . Core 13 | . 1 . . 1 6 . 1 . . 1 1 2 . . . . . . . . . . . . . . . . Reactor 6 | . . . . . . . . . . . 1 2 . . . . . . 1 1 . 1 . . . . . . Propulsion 39 | 1 1 . . 2 5 7 5 . . . 1 . . . . . . 10 . 2 1 2 . . 1 . . 1 Treads . | . . . . . . . . . . . . . . . . . . . . . . . . . . . . . Leg . | . . . . . . . . . . . . . . . . . . . . . . . . . . . . . Wheel 2 | 1 1 . . . . . . . . . . . . . . . . . . . . . . . . . . . Hover 1 | . . . . . . 1 . . . . . . . . . . . . . . . . . . . . . . Flight 36 | . . . . 2 5 6 5 . . . 1 . . . . . . 10 . 2 1 2 . . 1 . . 1 Utility 73 | . 3 1 . 1 7 2 6 . . 5 1 6 . 7 . . . . 3 1 1 5 . 7 6 . . 11 Device 53 | . 2 . . . 3 2 5 . . 1 1 4 . 6 . . . . 3 1 1 3 . 7 6 . . 8 Storage 1 | . . . . . . . . . . . . . . . . . . . . . . 1 . . . . . . Processor 12 | . 1 1 . 1 2 . 1 . . 4 . 1 . . . . . . . . . . . . . . . 1 Hackware 5 | . . . . . 2 . . . . . . 1 . . . . . . . . . 1 . . . . . 1 Protection 2 | . . . . . . . . . . . . . . 1 . . . . . . . . . . . . . 1 Artifact . | . . . . . . . . . . . . . . . . . . . . . . . . . . . . . Weapon 38 | 1 1 . 1 3 6 2 2 . . 1 . 4 1 . . 1 . . 4 3 . 2 . 1 . 1 . 4 Energy Gun 4 | 1 . . . . . . . . . . . . . . . . . . . . . 1 . . . . . 2 Energy Cannon . | . . . . . . . . . . . . . . . . . . . . . . . . . . . . . Ballistic Gun . | . . . . . . . . . . . . . . . . . . . . . . . . . . . . . Ballistic Cannon . | . . . . . . . . . . . . . . . . . . . . . . . . . . . . . Launcher 5 | . 1 . . 2 . . . . . . . . . . . . . . 2 . . . . . . . . . Special Weapon 1 | . . . . . . . . . . . . . . . . . . . . . . . . 1 . . . . Impact Weapon . | . . . . . . . . . . . . . . . . . . . . . . . . . . . . . Slashing Weapon 20 | . . . 1 1 6 2 2 . . 1 . 3 . . . . . . 1 2 . . . . . . . 1 Piercing Weapon . | . . . . . . . . . . . . . . . . . . . . . . . . . . . . . Special Melee Weapon 8 | . . . . . . . . . . . . 1 1 . . 1 . . 1 1 . 1 . . . 1 . 1 Unidentified Prototypes 19 | . . . . . 1 2 1 . . 4 . 1 . 1 . . . . . . 1 6 . . 1 . . 1 Parts Lost 9 | . . . . 1 . 1 . . . . . 1 1 . . . . . . . 2 . . . . . . 3 Power 1 | . . . . . . . . . . . . 1 . . . . . . . . . . . . . . . . Propulsion 5 | . . . . . . 1 . . . . . . . . . . . . . . 1 . . . . . . 3 Utility 2 | . . . . . . . . . . . . . 1 . . . . . . . 1 . . . . . . . Weapon 1 | . . . . 1 . . . . . . . . . . . . . . . . . . . . . . . . Highest Loss Streak 1 | . . . . 1 . 1 . . . . . 1 1 . . . . . . . 1 . . . . . . 1 To Critical Strikes 1 | . . . . . . . . . . . . . . . . . . . . . 1 . . . . . . . Average Slot Usage (%) 96 | . 97 100 100 95 99 99 100 100 100 96 95 96 94 93 95 94 95 95 99 99 99 93 96 93 91 95 96 74 Core 5 | . 14 11 11 10 9 10 9 9 9 5 4 3 . . . . . . . . . . . . . . . . Reactor 2 | . . . . . . . . . . . . . 4 4 4 4 4 4 7 8 8 6 4 4 3 3 3 3 Wheel 2 | . 30 23 22 2 . . . . . . . . . . . . . . . . . . . . . . . . Flight 19 | . . . . 19 21 22 20 22 22 22 21 21 21 21 21 21 21 22 24 23 23 24 24 24 23 23 23 17 Device 22 | . 29 23 22 21 14 12 16 22 22 21 22 25 25 21 21 21 21 20 24 28 27 21 24 26 27 30 30 30 Processor 9 | . 1 17 22 21 19 14 9 9 9 9 8 8 8 8 8 8 8 8 8 8 8 8 8 8 7 7 7 7 Hackware 4 | . . . . . 9 10 8 4 4 4 4 4 4 4 4 4 4 4 4 4 4 5 8 5 3 3 3 1 Energy Gun 1 | . 16 11 6 . . . . . . . . . . . . . . . . . . . . . . . . . Launcher 2 | . 1 11 11 6 6 5 4 4 4 4 3 . . . . . . . . . . . . . . . . . Slashing Weapon 21 | . . . 4 11 16 18 28 27 27 27 26 26 26 26 26 26 26 25 24 23 24 24 24 24 23 23 23 9 Special Melee Weapon 1 | . . . . . . . . . . . . 2 3 4 4 3 4 4 3 3 4 3 4 1 . 2 3 1 Naked Turns . | . . . . . . . . . . . . . . . . . . . . . . . . . . . . . Heaviest Build 67 | 7 12 12 13 16 26 31 45 45 45 45 46 47 46 54 52 52 52 52 66 67 67 62 62 66 66 67 67 67 Greatest Support 67 | 16 32 32 32 32 32 32 46 46 46 46 47 47 47 52 52 52 52 67 67 67 67 67 67 67 67 67 67 67 Greatest Overweight (x) 2 | . . . . 2 . 1 1 . . . . . . 1 . . . 1 . 1 . . . . 1 . . 1 Average Overweight (x) . | . . . . . . . . . . . . . . . . . . . . . . . . . . . . . Largest Inventory Capacity 2 | . . . . . 1 1 1 1 1 1 2 2 2 2 2 2 2 2 2 2 2 2 2 2 2 2 2 2 Average Capacity 1 | . . . . . . 1 1 1 1 1 1 2 2 2 2 2 2 2 2 2 2 2 2 2 2 2 2 2 Most Carried 2 | . . . . . 1 1 1 1 1 1 2 2 2 2 2 2 2 2 2 2 2 2 2 2 2 2 2 2 Average Carried 1 | . . . . . . 1 1 1 1 1 1 2 2 2 2 2 2 2 1 2 1 1 2 1 2 2 2 1 Final Capacity 2 | . . . . . 1 1 1 1 1 1 2 2 2 2 2 2 2 2 2 2 2 2 2 2 2 2 2 2 Final Carried 2 | . . . . . 1 1 1 1 1 1 2 2 2 2 2 2 2 2 2 2 2 2 2 2 2 2 2 2 Class Distribution -------------------- 36% | Hacker-Ninja 32% | Hacker-Scout 10% | Mutant 9% | Scavenger-Scout 3% | Scavenger-Ninja Dominant Class ---------------- Mutant | -10/Materials Mutant | -10/Mines Mutant | -10/Exiles Scavenger-Scout | -9/Mines Scavenger-Scout | -8/Materials Hacker-Scout | -8/Storage Hacker-Scout | -7/Factory Hacker-Scout | -7/Lower Caves Hacker-Scout | -7/Lower Caves Hacker-Scout | -7/Zion Hacker-Scout | -6/Proximity Caves Hacker-Ninja | -6/Factory Hacker-Ninja | -6/Lower Caves Hacker-Ninja | -6/Lower Caves Hacker-Ninja | -6/Data Miner Hacker-Ninja | -5/Proximity Caves Hacker-Ninja | -5/Factory Hacker-Ninja | -5/DSF Hacker-Ninja | -4/Factory Hacker-Ninja | -4/Upper Caves Scavenger-Ninja | -4/Upper Caves Scavenger-Sprinter | -4/Warlord Hacker-Sprinter | -3/Proximity Caves Hacker-Ninja | -3/Research Hacker-Ninja | -3/DSF Hacker-Ninja | -2/Research Hacker-Ninja | -1/Access Infiltrator-Ninja | -1/Command Resources | -11 -10 -10 -10 -9 -8 -8 -7 -7 -7 -7 -6 -6 -6 -6 -6 -5 -5 -5 -4 -4 -4 -4 -3 -3 -3 -2 -1 -1 ----------- Run | Scr Mat Min Exi Min Mat Sto Fac Low Low Zio Pro Fac Low Low Dat Pro Fac DSF Fac Upp Upp War Pro Res DSF Res Acc Com Matter Collected 2768 | 230 60 110 . 80 284 362 492 . . 80 40 140 10 70 . 10 . . 225 80 35 3 8 154 35 60 . 200 Remotely . | . . . . . . . . . . . . . . . . . . . . . . . . . . . . . Salvage Created 20641 | . 365 107 . 432 1526 1375 3362 682 335 233 1737 2336 1386 579 . 749 . . 1043 709 1208 . . 447 370 271 319 1070 Parts 1058 | . 13 13 . 20 95 59 200 18 23 15 54 119 62 28 . 20 . . 58 38 39 . . 54 19 9 32 70 Haulers Intercepted 23 | . 1 . . . 6 4 6 . . . . 3 . 1 . . . . . . . . . 1 . 1 . . Recyclers Shooed . | . . . . . . . . . . . . . . . . . . . . . . . . . . . . . Parts Field Recycled . | . . . . . . . . . . . . . . . . . . . . . . . . . . . . . Retrieved Matter . | . . . . . . . . . . . . . . . . . . . . . . . . . . . . . Parts Self-Destructed 282 | . . . . . . . . 22 23 . 52 . 62 28 . 21 . . . 36 38 . . . . . . . Prevented . | . . . . . . . . . . . . . . . . . . . . . . . . . . . . . Kills | -11 -10 -10 -10 -9 -8 -8 -7 -7 -7 -7 -6 -6 -6 -6 -6 -5 -5 -5 -4 -4 -4 -4 -3 -3 -3 -2 -1 -1 ------- Run | Scr Mat Min Exi Min Mat Sto Fac Low Low Zio Pro Fac Low Low Dat Pro Fac DSF Fac Upp Upp War Pro Res DSF Res Acc Com Combat Hostiles Destroyed 346 | . 4 28 . 8 21 20 52 11 11 . 24 41 25 13 . 11 . . 12 14 18 . . 10 5 2 4 12 Melee 309 | . . . . 8 18 20 52 11 11 . 24 41 25 13 . 11 . . 10 14 18 . . 10 5 2 4 12 Guns 11 | . 3 8 . . . . . . . . . . . . . . . . . . . . . . . . . . AOE 25 | . . 20 . . 3 . . . . . . . . . . . . . 2 . . . . . . . . . Classes Destroyed 26 | . 3 3 . 3 4 2 3 2 . 1 1 1 . . . . . . . . . . . . 2 . . 1 Worker 18 | . . . . . 2 . 8 . . . . . . . . . . . . . . . . 1 . 1 . 6 Builder 6 | . . . . . . . 4 . . . . . . . . . . . 2 . . . . . . . . . Tunneler 5 | . . . . 1 1 . 2 . . . . . . . . . . . . . . . . . . 1 . . Hauler 23 | . 1 . . . 6 4 6 . . . . 3 . 1 . . . . . . . . . 1 . 1 . . Recycler 19 | . . . . 3 2 1 7 . . . . 2 . . . . . . 2 . . . . . . . 1 1 Carrier 1 | . . . . . . . . . . . 1 . . . . . . . . . . . . . . . . . Minesweeper 2 | . . . . . . . . 1 . . . . . . . . . . . 1 . . . . . . . . Mechanic 1 | . . . . . . 1 . . . . . . . . . . . . . . . . . . . . . . Operator 10 | . . . . . 3 . 3 . . . . 3 . . . . . . 1 . . . . . . . . . Drone 3 | . . . . . . . . . . . . . . . . . . . . . . . . . . . . 3 Watcher 27 | . 1 . . . 5 2 8 . . . . 1 . . . . . . 2 . . . . 2 . . 2 4 Swarmer 62 | . . 9 . 3 7 . 9 2 8 . 2 3 7 . . 3 . . 1 . 4 . . 2 . . . 2 Cutter 7 | . . . . . . . . . . . . 4 . . . . . . . . . . . . 3 . . . Grunt 116 | . 4 . . 4 3 12 17 4 3 . 14 21 9 8 . 6 . . 2 3 6 . . . . . . . Brawler 18 | . . . . . . 1 1 . . . 3 1 2 2 . . . . . 5 3 . . . . . . . Duelist 19 | . . . . 1 . 2 1 3 . . 2 2 2 2 . . . . . 2 2 . . . . . . . Protector 2 | . . . . . . . 1 . . . 1 . . . . . . . . . . . . . . . . . Sentry 48 | . . . . . 10 5 11 1 . . 2 7 3 1 . 2 . . 2 2 1 . . . . . . 1 Demolisher 1 | . . 1 . . . . . . . . . . . . . . . . . . . . . . . . . . Specialist 1 | . . . . . . . . . . . . . . . . . . . . . . . . . 1 . . . Hunter 15 | . . . . . 1 . 5 . . . . 1 2 . . . . . . 2 2 . . . . . 2 . Programmer 30 | . . . . . . . 7 . . . . 2 . . . . . . 7 . . . . 8 . 1 2 3 Heavy 1 | . . . . . . . . . . . . . . . . . . . . . . . . . 1 . . . Combat Programmer 2 | . . . . . . . . . . . . . . . . . . . . . . . . . . . . 2 Zionite 8 | . . . . . . . . . . 8 . . . . . . . . . . . . . . . . . . Packrat 1 | . . . . . . . . 1 . . . . . . . . . . . . . . . . . . . . Thief 1 | . . . . . . . . 1 . . . . . . . . . . . . . . . . . . . . Assembled 18 | . . 18 . . . . . . . . . . . . . . . . . . . . . . . . . . Surgeon 1 | . . . . . . . . . . 1 . . . . . . . . . . . . . . . . . . Thug 1 | . . . . . . . . . . . . . . . . . . . . . . . . . . 1 . . Wizard 1 | . . . . . . . . . . . . . . . . . . . . . . . . . . . . 1 Best Kill Streak 19 | . 3 14 . 3 5 12 8 8 4 9 19 6 6 8 . 11 . . 5 3 8 . . 4 4 2 7 4 Combat Bots Only 18 | . 2 14 . 3 4 10 7 8 4 . 18 6 6 8 . 11 . . 3 3 8 . . 4 4 1 2 3 Max Kills in Single Turn 5 | . 1 5 . 1 3 1 5 2 1 1 3 1 1 1 . 1 . . 3 1 1 . . 1 2 1 1 1 Gunslinging . | . . . . . . . . . . . . . . . . . . . . . . . . . . . . . Exploded 5 | . . 5 . . 3 . . . . . . . . . . . . . 1 . . . . . . . . . Melee 3 | . . . . 1 1 1 1 2 1 . 3 1 1 1 . 1 . . 1 1 1 . . 1 2 1 1 1 Uniques/NPCs Destroyed . | . . . . . . . . . . . . . . . . . . . . . . . . . . . . . Combat | -11 -10 -10 -10 -9 -8 -8 -7 -7 -7 -7 -6 -6 -6 -6 -6 -5 -5 -5 -4 -4 -4 -4 -3 -3 -3 -2 -1 -1 -------- Run | Scr Mat Min Exi Min Mat Sto Fac Low Low Zio Pro Fac Low Low Dat Pro Fac DSF Fac Upp Upp War Pro Res DSF Res Acc Com Damage Taken 11684 | . 99 555 . 236 264 366 639 160 125 109 926 507 947 247 . 467 . 214 241 245 598 80 84 229 305 154 201 3686 Core 9258 | . 97 451 . 191 209 313 512 124 98 81 742 387 754 188 . 362 . 192 162 196 462 61 65 187 243 127 156 2898 Absorbed by Shields 3318 | . . . . . 40 . 88 53 109 54 108 352 93 159 . 133 . 19 207 215 186 . . 85 92 56 70 1199 Redirected to Core 7271 | . 8 324 . 149 173 179 393 114 76 74 627 319 651 154 . 265 . 81 147 172 409 61 65 145 210 90 156 2229 Redirected to Shielding 66 | . . . . . . . . . . . . . . 7 . 28 . . 31 . . . . . . . . . Core Remaining (%) 83 | 100 . . . 92 . 81 . . . . 100 . . . . 87 . 55 . . . . 84 . 59 95 . . Volleys Fired 302 | . 172 64 . . 19 7 32 . . . . . . . . . . . 5 . . . . . . . . 3 Largest 1 | . 1 1 . . 1 1 1 . . . . . . . . . . . 1 . . . . . . . . 1 Hottest 94 | . 40 40 . . 33 33 33 . . . . . . . . . . . 33 . . . . . . . . 94 Shots Fired 302 | . 172 64 . . 19 7 32 . . . . . . . . . . . 5 . . . . . . . . 3 Gun 229 | . 172 54 . . . . . . . . . . . . . . . . . . . . . . . . . 3 Cannon . | . . . . . . . . . . . . . . . . . . . . . . . . . . . . . Launcher 73 | . . 10 . . 19 7 32 . . . . . . . . . . . 5 . . . . . . . . . Special . | . . . . . . . . . . . . . . . . . . . . . . . . . . . . . Kinetic . | . . . . . . . . . . . . . . . . . . . . . . . . . . . . . Thermal 3 | . . . . . . . . . . . . . . . . . . . . . . . . . . . . 3 Explosive 73 | . . 10 . . 19 7 32 . . . . . . . . . . . 5 . . . . . . . . . Electromagnetic 226 | . 172 54 . . . . . . . . . . . . . . . . . . . . . . . . . . Robot Hit Streak 21 | . 19 21 . . . . . . . . . . . . . . . . . . . . . . . . . . Robot Miss Streak 4 | . 1 4 . . 1 . . . . . . . . . . . . . . . . . . . . . . . Penetration Max . | . . . . . . . . . . . . . . . . . . . . . . . . . . . . . Secondary Targets . | . . . . . . . . . . . . . . . . . . . . . . . . . . . . . Shots Hit Robots 1187 | . 21 35 . 34 68 60 161 33 19 14 84 133 66 52 . 40 . . 52 54 70 2 . 37 27 18 20 87 Core Hits 542 | . 10 49 . 12 32 27 88 13 11 9 33 52 29 18 . 14 . . 28 23 24 . . 14 9 6 9 32 Critical Kills . | . . . . . . . . . . . . . . . . . . . . . . . . . . . . . Critical Parts Destroyed . | . . . . . . . . . . . . . . . . . . . . . . . . . . . . . Critical Strikes 83 | . . . . 3 . 8 9 . 1 2 8 11 5 6 . 4 . . 4 5 10 . . 3 . 1 2 1 Sever 83 | . . . . 3 . 8 9 . 1 2 8 11 5 6 . 4 . . 4 5 10 . . 3 . 1 2 1 Melee Attacks 1795 | . . . . 39 118 122 306 44 26 19 100 225 80 62 . 51 4 . 109 65 80 2 . 61 39 40 27 176 Impact . | . . . . . . . . . . . . . . . . . . . . . . . . . . . . . Slashing 1776 | . . . . 39 118 122 306 44 26 19 100 214 80 62 . 49 4 . 109 65 80 . . 61 39 38 27 174 Piercing . | . . . . . . . . . . . . . . . . . . . . . . . . . . . . . Sneak Attacks 152 | . . . . 5 20 6 18 7 . . 7 21 6 10 . 1 . . 4 4 18 2 . 7 . 4 1 11 Combat Hostiles 42 | . . . . 1 3 . 6 . . . . 6 3 1 . 1 . . 3 1 10 . . 4 . . . 3 Follow-up Attacks 284 | . . . . . 3 7 47 11 5 3 22 37 18 14 . 11 . . 19 17 27 . . 10 10 2 6 15 Damage Inflicted 69373 | . 336 1370 . 1764 4694 3641 10809 2088 1108 929 5563 7431 3519 2673 . 1890 . . 3202 2767 3964 . . 2325 865 1129 1148 6158 Guns 635 | . 307 328 . . . . . . . . . . . . . . . . . . . . . . . . . . Cannons . | . . . . . . . . . . . . . . . . . . . . . . . . . . . . . Explosions 3265 | . 29 1042 . . 210 . 1567 . . . . . . . . . . . 417 . . . . . . . . . Melee 65473 | . . . . 1764 4484 3641 9242 2088 1108 929 5563 7431 3519 2673 . 1890 . . 2785 2767 3964 . . 2325 865 1129 1148 6158 Ramming . | . . . . . . . . . . . . . . . . . . . . . . . . . . . . . Kinetic . | . . . . . . . . . . . . . . . . . . . . . . . . . . . . . Thermal 925 | . 29 123 . . . . 723 . . . . . . . . . . . 50 . . . . . . . . . Explosive 2005 | . . 919 . . 210 . 844 . . . . . . . . . . . 32 . . . . . . . . . Electromagnetic 970 | . 307 328 . . . . . . . . . . . . . . . . 335 . . . . . . . . . Impact . | . . . . . . . . . . . . . . . . . . . . . . . . . . . . . Slashing 65473 | . . . . 1764 4484 3641 9242 2088 1108 929 5563 7431 3519 2673 . 1890 . . 2785 2767 3964 . . 2325 865 1129 1148 6158 Piercing . | . . . . . . . . . . . . . . . . . . . . . . . . . . . . . Highest Corruption 18 | . . . . . . . . . . . . 1 . . . . . . . . 4 4 . 3 . . . 18 Average Corruption 6 | . . . . . . . . . . . . 1 . . . . . . . . 4 3 . 1 . . . 7 Corruption Purged 26 | . . . . . . . . . . . . 1 . . . . . . . . . 4 . 5 . . . 16 Corruption Blocked 8 | . . . . . . . . . . . . . . . . . . . . . . . . . . . . 8 Effects 39 | . . . . . . . . . . . . . . . . . . . . . 2 3 . . . . . 34 Message Errors 11 | . . . . . . . . . . . . . . . . . . . . . . 1 . . . . . 10 Matter Fused 8 | . . . . . . . . . . . . . . . . . . . . . 2 . . . . . . 6 Heat Flow Errors 3 | . . . . . . . . . . . . . . . . . . . . . . . . . . . . 3 Energy Discharges 4 | . . . . . . . . . . . . . . . . . . . . . . . . . . . . 4 Data Loss (minor) 9 | . . . . . . . . . . . . . . . . . . . . . . 2 . . . . . 7 Data Loss (major) 1 | . . . . . . . . . . . . . . . . . . . . . . . . . . . . 1 Alerts 1 | . . . . . . . . . . . . . . . . . . . . . . . . . . . . 1 Misdirections 2 | . . . . . . . . . . . . . . . . . . . . . . . . . . . . 2 Overload Shots . | . . . . . . . . . . . . . . . . . . . . . . . . . . . . . Overflow Damage 6858 | . 7 20 . 247 753 380 1266 420 54 5 1045 855 187 245 . 39 . . 270 115 152 . . 205 . 144 10 439 Projectiles . | . . . . . . . . . . . . . . . . . . . . . . . . . . . . . Explosions 189 | . 7 20 . . 3 . 152 . . . . . . . . . . . 2 . . . . . . . . 5 Melee 6669 | . . . . 247 750 380 1114 420 54 5 1045 855 187 245 . 39 . . 268 115 152 . . 205 . 144 10 434 Knockbacks . | . . . . . . . . . . . . . . . . . . . . . . . . . . . . . Impact . | . . . . . . . . . . . . . . . . . . . . . . . . . . . . . Kinetic . | . . . . . . . . . . . . . . . . . . . . . . . . . . . . . Secondary . | . . . . . . . . . . . . . . . . . . . . . . . . . . . . . Self-Inflicted Damage 546 | . 31 56 . . 10 109 20 . . . . . . . . 89 . . . . . . . . . . 108 123 Shots 11 | . 1 3 . . 1 2 1 . . . . . . . . 1 . . . . . . . . . . 1 1 Rammed . | . . . . . . . . . . . . . . . . . . . . . . . . . . . . . Targets Rammed . | . . . . . . . . . . . . . . . . . . . . . . . . . . . . . Kicked . | . . . . . . . . . . . . . . . . . . . . . . . . . . . . . Crushed . | . . . . . . . . . . . . . . . . . . . . . . . . . . . . . Highest Temperature 304 | . 24 8 . . 97 . 241 7 3 19 26 2 20 6 . 6 . . 209 136 184 304 . 1 . 4 . 226 Average Temperature 51 | . 15 8 . . 39 . 85 2 2 7 7 2 7 6 . 6 . . 56 32 46 115 . 1 . 2 . 84 Received Heat Transfer 2276 | . 51 80 . 93 85 153 253 26 16 75 433 185 252 132 . 113 . . 41 30 36 . . . . 25 . 197 Siege Activations . | . . . . . . . . . . . . . . . . . . . . . . . . . . . . . Robots Corrupted 2 | . 1 . . . . . . . . . . . . . . . . . 1 . . . . . . . . . Combat Hostiles 1 | . 1 . . . . . . . . . . . . . . . . . . . . . . . . . . . Parts Fried 7 | . 2 . . . . . . . . . . . . . . . . . 5 . . . . . . . . . Impact Corruptions . | . . . . . . . . . . . . . . . . . . . . . . . . . . . . . Robots Melted . | . . . . . . . . . . . . . . . . . . . . . . . . . . . . . Combat Hostiles . | . . . . . . . . . . . . . . . . . . . . . . . . . . . . . Parts Melted 3 | . . . . . . . 2 . . . . . . . . 1 . . . . . . . . . . . . Heat Transferred 650 | . 50 50 . . . . 500 . . . . . . . . . . . 50 . . . . . . . . . Parts Sabotaged . | . . . . . . . . . . . . . . . . . . . . . . . . . . . . . Parts Stolen . | . . . . . . . . . . . . . . . . . . . . . . . . . . . . . Parts Stripped . | . . . . . . . . . . . . . . . . . . . . . . . . . . . . . Power Chain Reactions 4 | . 1 3 . . . . . . . . . . . . . . . . . . . . . . . . . . Missiles Intercepted . | . . . . . . . . . . . . . . . . . . . . . . . . . . . . . Alert | -11 -10 -10 -10 -9 -8 -8 -7 -7 -7 -7 -6 -6 -6 -6 -6 -5 -5 -5 -4 -4 -4 -4 -3 -3 -3 -2 -1 -1 ------- Run | Scr Mat Min Exi Min Mat Sto Fac Low Low Zio Pro Fac Low Low Dat Pro Fac DSF Fac Upp Upp War Pro Res DSF Res Acc Com Peak Influence 1832 | . 244 349 . 150 578 869 1832 . . . . 834 . . . . 66 114 683 . . . . 198 265 250 349 1045 Initial 338 | . . . . . 34 151 338 . . . . . . . . . 39 39 51 . . . . 62 131 129 125 195 Average 401 | . 86 126 . 75 277 291 1066 . . . . 370 . . . . 40 52 283 . . . . 76 204 45 244 544 Maximum Alert Level 5 | . 1 1 . . 2 3 5 . . . . 3 . . . . . . 2 . . . . . 1 1 1 3 Low Security (%) 43 | 100 91 76 . 100 36 37 . . . . . 16 . . . . 100 100 48 . . . . 100 44 94 33 4 Level 1 23 | . 8 23 . . 34 42 13 . . . . 54 . . . . . . 12 . . . . . 55 6 66 33 Level 2 13 | . . . . . 28 15 6 . . . . 20 . . . . . . 39 . . . . . . . . 27 Level 3 10 | . . . . . . 4 32 . . . . 9 . . . . . . . . . . . . . . . 35 Level 4 6 | . . . . . . . 31 . . . . . . . . . . . . . . . . . . . . . Level 5 3 | . . . . . . . 16 . . . . . . . . . . . . . . . . . . . . . High Security . | . . . . . . . . . . . . . . . . . . . . . . . . . . . . . Max Security . | . . . . . . . . . . . . . . . . . . . . . . . . . . . . . Squads Dispatched 49 | . 1 . . . 1 2 17 . . . 1 9 . . . . . 3 7 . 1 . . 5 1 . . 1 Investigation 6 | . 1 . . . . . 4 . . . . 1 . . . . . . . . . . . . . . . . Extermination 17 | . . . . . . . 6 . . . . 3 . . . . . . 3 . . . . 4 . . . 1 Reinforcement 15 | . . . . . 1 . 2 . . . . 4 . . . . . 3 3 . . . . 1 1 . . . Assault 7 | . . . . . . 2 1 . . . 1 1 . . . . . . 1 . 1 . . . . . . . Garrison 4 | . . . . . . . 4 . . . . . . . . . . . . . . . . . . . . . Intercept . | . . . . . . . . . . . . . . . . . . . . . . . . . . . . . Searches Triggered 2 | . . . . . . . . . . . . . . . . . . . . . . . . . . . . 2 Data Miner Redirects 1 | . . . . . . . . . . . . . . . . . . . 1 . . . . . . . . . Construction Impeded 4 | . . . . . 1 . 2 . . . . . . . . . . . 1 . . . . . . . . . Haulers Reinforced 3 | . . . . . . . . . . . . 2 . . . . . . . . . . . 1 . . . . Active Scanning Responses . | . . . . . . . . . . . . . . . . . . . . . . . . . . . . . Cargo Convoy Interrupts 1 | . . . . . . . . . . . . 1 . . . . . . . . . . . . . . . . Stealth | -11 -10 -10 -10 -9 -8 -8 -7 -7 -7 -7 -6 -6 -6 -6 -6 -5 -5 -5 -4 -4 -4 -4 -3 -3 -3 -2 -1 -1 --------- Run | Scr Mat Min Exi Min Mat Sto Fac Low Low Zio Pro Fac Low Low Dat Pro Fac DSF Fac Upp Upp War Pro Res DSF Res Acc Com Distress Signals 16 | . . . . . 2 2 3 . . . . 1 . . . . . . . . . . . . . 4 1 3 Communications Jammed 80 | . . . . . . . . . . . . 4 . . . . . . 1 . 4 . . . 11 . 15 45 Distress Signals 57 | . . . . . . . . . . . . 3 . . . . . . 1 . 4 . . . . . 14 35 Times Spotted 543 | . 5 34 . 9 26 30 61 12 11 27 24 51 21 17 . 13 . 8 22 11 22 5 8 11 6 19 6 84 Peak Tracking Total 17 | . 2 12 . 3 3 9 5 7 4 17 10 5 4 5 . 7 . 7 6 2 5 12 7 2 4 14 3 16 Tactical Retreats 58 | . . 5 . 1 1 3 1 2 . 4 . 1 1 4 . . . 3 2 . 6 2 3 1 1 3 . 14 Traps | -11 -10 -10 -10 -9 -8 -8 -7 -7 -7 -7 -6 -6 -6 -6 -6 -5 -5 -5 -4 -4 -4 -4 -3 -3 -3 -2 -1 -1 ------- Run | Scr Mat Min Exi Min Mat Sto Fac Low Low Zio Pro Fac Low Low Dat Pro Fac DSF Fac Upp Upp War Pro Res DSF Res Acc Com Traps Triggered 10 | . . . . . . . 1 . . . . . . . . . . 1 1 . . . . . 1 . . 6 Indirectly 2 | . . . . . . . 1 . . . . . . . . . . . 1 . . . . . . . . . Trap Hack Attempts . | . . . . . . . . . . . . . . . . . . . . . . . . . . . . . Triggered . | . . . . . . . . . . . . . . . . . . . . . . . . . . . . . Disarmed 4 | . 4 . . . . . . . . . . . . . . . . . . . . . . . . . . . Reprogrammed 12 | . 2 . . . . 10 . . . . . . . . . . . . . . . . . . . . . . Reused 9 | . . . . . . 9 . . . . . . . . . . . . . . . . . . . . . . Traps Extracted . | . . . . . . . . . . . . . . . . . . . . . . . . . . . . . Installed . | . . . . . . . . . . . . . . . . . . . . . . . . . . . . . Triggered 22 | . . 1 . . . 9 . . . . . 3 . . . . . . . . 1 8 . . . . . . Machines | -11 -10 -10 -10 -9 -8 -8 -7 -7 -7 -7 -6 -6 -6 -6 -6 -5 -5 -5 -4 -4 -4 -4 -3 -3 -3 -2 -1 -1 ---------- Run | Scr Mat Min Exi Min Mat Sto Fac Low Low Zio Pro Fac Low Low Dat Pro Fac DSF Fac Upp Upp War Pro Res DSF Res Acc Com Machines Disabled 332 | . 22 12 . 3 33 26 129 . . . . 37 . . . 6 3 . 46 . 1 . . 4 1 2 2 5 Max in Single Turn 13 | . 2 1 . 1 1 3 11 . . . . 1 . . . 4 1 . 13 . 1 . . 1 1 1 1 2 Phase Generator 1 | . . . . . . . . . . . . . . . . . . . . . . . . . . . . 1 Machines Sabotaged . | . . . . . . . . . . . . . . . . . . . . . . . . . . . . . Garrisons Compromised 1 | . . . . . . . . . . . . 1 . . . . . . . . . . . . . . . . Overloaded Fab Kills . | . . . . . . . . . . . . . . . . . . . . . . . . . . . . . Hacking | -11 -10 -10 -10 -9 -8 -8 -7 -7 -7 -7 -6 -6 -6 -6 -6 -5 -5 -5 -4 -4 -4 -4 -3 -3 -3 -2 -1 -1 --------- Run | Scr Mat Min Exi Min Mat Sto Fac Low Low Zio Pro Fac Low Low Dat Pro Fac DSF Fac Upp Upp War Pro Res DSF Res Acc Com Machines Accessed 102 | . 9 1 1 1 14 9 20 . . . . 14 1 . 4 1 2 . 5 1 1 7 . 3 . 1 1 6 Terminals 68 | . 7 1 . 1 10 8 14 . . . . 11 . . . 1 2 . 3 . . . . 3 . 1 . 6 Fabricators 6 | . . . . . . . 4 . . . . 1 . . . . . . 1 . . . . . . . . . Repair Stations 1 | . . . . . . . . . . . . 1 . . . . . . . . . . . . . . . . Recycling Units 5 | . 2 . . . 1 . . . . . . 1 . . . . . . 1 . . . . . . . . . Scanalyzers 2 | . . . . . 2 . . . . . . . . . . . . . . . . . . . . . . . Garrison Access 5 | . . . . . 1 1 2 . . . . . . . . . . . . . . . . . . . 1 . Total Hacks 303 | . 29 3 1 2 44 28 59 . . . . 44 1 . 30 5 6 . 13 1 1 8 . 5 . 7 1 15 Successful 186 | . 17 1 1 . 33 18 29 . . . . 24 1 . 30 5 2 . 7 1 1 8 . 2 . 3 . 3 Failed 116 | . 12 2 . 2 11 10 30 . . . . 19 . . . . 4 . 6 . . . . 3 . 4 1 12 Catastrophic 19 | . 2 1 . . . 1 5 . . . . 3 . . . . . . 2 . . . . 2 . . . 3 Database Lockouts 1 | . . . . . . . . . . . . 1 . . . . . . . . . . . . . . . . Manual 30 | . . . 1 . 1 . . . . 3 . 12 . . 1 4 . . . . . 2 . 2 . 4 . . Terminals 223 | . 25 3 . 2 35 27 45 . . . . 39 . . . 5 6 . 9 . . . . 5 . 7 . 15 Fabricators 15 | . . . . . . . 11 . . . . 2 . . . . . . 2 . . . . . . . . . Repair Stations 1 | . . . . . . . . . . . . 1 . . . . . . . . . . . . . . . . Recycling Units 9 | . 4 . . . 1 . . . . . . 2 . . . . . . 2 . . . . . . . . . Scanalyzers 5 | . . . . . 5 . . . . . . . . . . . . . . . . . . . . . . . Garrison Access 8 | . . . . . 3 1 3 . . . . . . . . . . . . . . . . . . . 1 . Terminal Hacks 159 | . 15 1 1 . 25 17 19 . . . . 19 1 . 30 5 2 . 6 1 1 8 . 2 . 3 . 3 Record 40 | . . . . . 5 1 1 . . . . 6 . . 11 5 1 . 2 . 1 6 . . . . . 1 Part Schematic 18 | . . . . . . 3 3 . . . . 1 . . 11 . . . . . . . . . . . . . Robot Schematic 6 | . . . . . . . 1 . . . . . . . 5 . . . . . . . . . . . . . Robot Analysis 3 | . 1 . . . 1 . . . . . . . . . . . . . 1 . . . . . . . . . Prototype ID Bank 21 | . 2 . . . 1 1 4 . . . . 8 . . 3 . . . 1 . . . . . . 1 . . Open Door 7 | . . . . . . 2 . . . . . . 1 . . . . . . 1 . 2 . . . . . 1 Open DSF 6 | . . . . . . . 1 . . . . 3 . . . . 1 . . . . . . 1 . . . . Branch Access Points 1 | . . . . . 1 . . . . . . . . . . . . . . . . . . . . . . . Emergency Access Points 4 | . . . . . 2 1 1 . . . . . . . . . . . . . . . . . . . . . Repair Station Index 1 | . . . . . 1 . . . . . . . . . . . . . . . . . . . . . . . Scanalyzer Index 1 | . . . . . 1 . . . . . . . . . . . . . . . . . . . . . . . Alert Level 8 | . . . . . 4 . 3 . . . . . . . . . . . 1 . . . . . . . . . Unreport Threat 9 | . 2 . . . 2 . 2 . . . . . . . . . . . . . . . . 1 . 2 . . Locate Traps 8 | . 3 . . . 1 2 . . . . . 1 . . . . . . 1 . . . . . . . . . Disarm Traps 2 | . 2 . . . . . . . . . . . . . . . . . . . . . . . . . . . Reprogram Traps 6 | . 2 . . . . 4 . . . . . . . . . . . . . . . . . . . . . . Dispatch Records 4 | . 2 . . . 1 1 . . . . . . . . . . . . . . . . . . . . . . Maintenance Status 1 | . . . . . 1 . . . . . . . . . . . . . . . . . . . . . . . Security Status 2 | . . . . . 1 1 . . . . . . . . . . . . . . . . . . . . . . Investigation Status 1 | . . . . . 1 . . . . . . . . . . . . . . . . . . . . . . . Assault Status 1 | . . . . . 1 . . . . . . . . . . . . . . . . . . . . . . . Recall Investigation 1 | . . . . . . . 1 . . . . . . . . . . . . . . . . . . . . . Registered Components 2 | . . . . . . 1 1 . . . . . . . . . . . . . . . . . . . . . Registered Prototypes 1 | . . . . . 1 . . . . . . . . . . . . . . . . . . . . . . . Zone Layout 3 | . 1 1 . . . . 1 . . . . . . . . . . . . . . . . . . . . . EX-Prototype ID Bank 1 | . . . 1 . . . . . . . . . . . . . . . . . . . . . . . . . Disengage Seal 1 | . . . . . . . . . . . . . . . . . . . . . . . . . . . . 1 Fabricator Hacks 12 | . . . . . . . 9 . . . . 2 . . . . . . 1 . . . . . . . . . Load Schematic 6 | . . . . . . . 4 . . . . 1 . . . . . . 1 . . . . . . . . . Build 6 | . . . . . . . 5 . . . . 1 . . . . . . . . . . . . . . . . Repair Station Hacks 1 | . . . . . . . . . . . . 1 . . . . . . . . . . . . . . . . Refit 1 | . . . . . . . . . . . . 1 . . . . . . . . . . . . . . . . Recycling Unit Hacks 5 | . 2 . . . 1 . . . . . . 2 . . . . . . . . . . . . . . . . Report Inventory 1 | . . . . . 1 . . . . . . . . . . . . . . . . . . . . . . . Retrieve Components 4 | . 2 . . . . . . . . . . 2 . . . . . . . . . . . . . . . . Scanalyzer 5 | . . . . . 5 . . . . . . . . . . . . . . . . . . . . . . . Insert Component 3 | . . . . . 3 . . . . . . . . . . . . . . . . . . . . . . . Analyze 2 | . . . . . 2 . . . . . . . . . . . . . . . . . . . . . . . Garrison Access Hacks 4 | . . . . . 2 1 1 . . . . . . . . . . . . . . . . . . . . . Unlock Access 3 | . . . . . 1 1 1 . . . . . . . . . . . . . . . . . . . . . Coupler Status 1 | . . . . . 1 . . . . . . . . . . . . . . . . . . . . . . . Unauthorized Hacks . | . . . . . . . . . . . . . . . . . . . . . . . . . . . . . Terminals . | . . . . . . . . . . . . . . . . . . . . . . . . . . . . . Fabricators . | . . . . . . . . . . . . . . . . . . . . . . . . . . . . . Repair Stations . | . . . . . . . . . . . . . . . . . . . . . . . . . . . . . Recycling Units . | . . . . . . . . . . . . . . . . . . . . . . . . . . . . . Scanalyzers . | . . . . . . . . . . . . . . . . . . . . . . . . . . . . . Garrison Access . | . . . . . . . . . . . . . . . . . . . . . . . . . . . . . Data Cores Recovered 7 | . . . . . 2 . 3 . . . . 2 . . . . . . . . . . . . . . . . Used 6 | . . . . . 2 . 3 . . . . 1 . . . . . . . . . . . . . . . . Hacking Detections 62 | . 8 1 . 1 7 5 16 . . . . 9 . . . . 1 . 5 . . . . 2 . 1 1 5 Full Trace Events 9 | . 1 1 . . . . 4 . . . . 1 . . . . . . . . . . . . . . . 2 Feedback Events . | . . . . . . . . . . . . . . . . . . . . . . . . . . . . . Feedback Blocked . | . . . . . . . . . . . . . . . . . . . . . . . . . . . . . Robot Schematics Acquired 10 | . . . . . . . 1 . . 4 . . . . 5 . . . . . . . . . . . . . Robots Built 5 | . . . . . . . 4 . . . . 1 . . . . . . . . . . . . . . . . Authchips . | . . . . . . . . . . . . . . . . . . . . . . . . . . . . . Time 437 | . . . . . . . 215 . . . . 222 . . . . . . . . . . . . . . . . Total Robot Build Rating 22 | . . . . . . . 13 . . . . 9 . . . . . . . . . . . . . . . . Part Schematics Acquired 33 | . . . . . 2 3 3 . . 13 . 1 . . 11 . . . . . . . . . . . . . Parts Built 4 | . . . . . . . 4 . . . . . . . . . . . . . . . . . . . . . Authchips . | . . . . . . . . . . . . . . . . . . . . . . . . . . . . . Time 263 | . . . . . . . 263 . . . . . . . . . . . . . . . . . . . . . Total Part Build Rating 16 | . . . . . . . 16 . . . . . . . . . . . . . . . . . . . . . Parts Repaired . | . . . . . . . . . . . . . . . . . . . . . . . . . . . . . Time . | . . . . . . . . . . . . . . . . . . . . . . . . . . . . . Parts Recycled . | . . . . . . . . . . . . . . . . . . . . . . . . . . . . . Recycled Matter . | . . . . . . . . . . . . . . . . . . . . . . . . . . . . . Retrieved Matter . | . . . . . . . . . . . . . . . . . . . . . . . . . . . . . Retrieved Components 19 | . 19 . . . . . . . . . . . . . . . . . . . . . . . . . . . Parts Scanalyzed 2 | . . . . . 2 . . . . . . . . . . . . . . . . . . . . . . . Part Schematics Acquired 2 | . . . . . 2 . . . . . . . . . . . . . . . . . . . . . . . Parts Damaged . | . . . . . . . . . . . . . . . . . . . . . . . . . . . . . Bothacking | -11 -10 -10 -10 -9 -8 -8 -7 -7 -7 -7 -6 -6 -6 -6 -6 -5 -5 -5 -4 -4 -4 -4 -3 -3 -3 -2 -1 -1 ------------ Run | Scr Mat Min Exi Min Mat Sto Fac Low Low Zio Pro Fac Low Low Dat Pro Fac DSF Fac Upp Upp War Pro Res DSF Res Acc Com Used RIF Installer . | . . . . . . . . . . . . . . . . . . . . . . . . . . . . . Robots Hacked 5 | . . . . . . . . . . . . 3 . . . 1 . . . . . . . . . 1 . . Non-combat 3 | . . . . . . . . . . . . 3 . . . . . . . . . . . . . . . . Combat 1 | . . . . . . . . . . . . . . . . 1 . . . . . . . . . . . . Robot Hacks Applied 7 | . . . . . . . . . . . . 6 . . . 1 . . . . . . . . . . . . parse_system 4 | . . . . . . . . . . . . 3 . . . 1 . . . . . . . . . . . . no_distress 1 | . . . . . . . . . . . . 1 . . . . . . . . . . . . . . . . find_chute 1 | . . . . . . . . . . . . 1 . . . . . . . . . . . . . . . . check_alert 1 | . . . . . . . . . . . . 1 . . . . . . . . . . . . . . . . Manual 1 | . . . . . . . . . . . . . . . . . . . . . . . . . . 1 . . Relay Couplers Released . | . . . . . . . . . . . . . . . . . . . . . . . . . . . . . Fabnet Peak Effective % . | . . . . . . . . . . . . . . . . . . . . . . . . . . . . . Robots Rewired . | . . . . . . . . . . . . . . . . . . . . . . . . . . . . . Allies Hacked . | . . . . . . . . . . . . . . . . . . . . . . . . . . . . . Hacks Repelled . | . . . . . . . . . . . . . . . . . . . . . . . . . . . . . Allies | -11 -10 -10 -10 -9 -8 -8 -7 -7 -7 -7 -6 -6 -6 -6 -6 -5 -5 -5 -4 -4 -4 -4 -3 -3 -3 -2 -1 -1 -------- Run | Scr Mat Min Exi Min Mat Sto Fac Low Low Zio Pro Fac Low Low Dat Pro Fac DSF Fac Upp Upp War Pro Res DSF Res Acc Com Total Allies 16 | . . . . . . 2 4 . . . . 4 . . . 1 . . . . . . . . . 5 . . Largest Group 5 | . . . . . . 2 4 4 4 3 . 4 . . . 1 . . . . . . . . . 5 . . Highest-Rated Group 734 | . . . . . . 62 100 100 99 89 . 160 . . . 96 . . . . . . . . . 734 . . Highest-Rated Ally 369 | . . . . . . 31 30 30 30 30 . 67 . . . 96 . . . . . . . . . 369 . . Total Orders 5 | . . . . . . . . 4 . . . 1 . . . . . . . . . . . . . . . . STAY 1 | . . . . . . . . . . . . 1 . . . . . . . . . . . . . . . . FOLLOW 2 | . . . . . . . . 2 . . . . . . . . . . . . . . . . . . . . TUNNEL 2 | . . . . . . . . 2 . . . . . . . . . . . . . . . . . . . . Ally Attacks 109 | . . . . . . 13 13 15 . 6 . 27 . . . 8 . . . . . . . . . 27 . . Total Damage 5091 | . . . . . . 235 273 251 . 216 . 728 . . . 281 . . . . . . . . . 3107 . . Kills 25 | . . . . . . 2 1 2 . 1 . 4 . . . 3 . . . . . . . . . 12 . . Allies Corrupted . | . . . . . . . . . . . . . . . . . . . . . . . . . . . . . Allies Melted 1 | . . . . . . 1 . . . . . . . . . . . . . . . . . . . . . . Intel | -11 -10 -10 -10 -9 -8 -8 -7 -7 -7 -7 -6 -6 -6 -6 -6 -5 -5 -5 -4 -4 -4 -4 -3 -3 -3 -2 -1 -1 ------- Run | Scr Mat Min Exi Min Mat Sto Fac Low Low Zio Pro Fac Low Low Dat Pro Fac DSF Fac Upp Upp War Pro Res DSF Res Acc Com Robot Analysis Total 3 | . 1 . . . 1 . . . . . . . . . . . . . 1 . . . . . . . . . Derelict Logs Recovered 18 | . . 1 . 2 . . . 2 3 2 1 . 3 1 . . . . . 1 2 . . . . . . . Drone Launches . | . . . . . . . . . . . . . . . . . . . . . . . . . . . . . Drone Recoveries . | . . . . . . . . . . . . . . . . . . . . . . . . . . . . . Exploration | -11 -10 -10 -10 -9 -8 -8 -7 -7 -7 -7 -6 -6 -6 -6 -6 -5 -5 -5 -4 -4 -4 -4 -3 -3 -3 -2 -1 -1 ------------- Run | Scr Mat Min Exi Min Mat Sto Fac Low Low Zio Pro Fac Low Low Dat Pro Fac DSF Fac Upp Upp War Pro Res DSF Res Acc Com Turns Passed 32709 | 39 1769 1427 302 775 2147 1042 3549 2374 1416 921 1859 2154 1544 1076 283 1257 131 209 1278 1596 957 681 228 1092 127 650 241 1585 Spaces Moved 24634 | 36 757 627 248 522 1256 797 3044 1007 865 1279 1186 2452 798 758 116 688 54 180 1039 865 748 1010 380 804 165 948 193 1812 Core 3 | 2 . . . . . 1 . . . . . . . . . . . . . . . . . . . . . . Treads . | . . . . . . . . . . . . . . . . . . . . . . . . . . . . . Legs . | . . . . . . . . . . . . . . . . . . . . . . . . . . . . . Wheels 1705 | 34 757 627 248 39 . . . . . . . . . . . . . . . . . . . . . . . . Hover . | . . . . . . . . . . . . . . . . . . . . . . . . . . . . . Flight 22926 | . . . . 483 1256 796 3044 1007 865 1279 1186 2452 798 758 116 688 54 180 1039 865 748 1010 380 804 165 948 193 1812 Fastest Speed 25 | 50 100 100 100 37 31 26 25 25 25 25 25 25 25 25 25 25 25 25 30 30 28 26 26 26 26 26 26 26 Average Speed 32 | 97 100 100 100 42 33 26 29 25 25 25 25 25 25 25 25 25 25 29 30 30 30 26 26 26 27 26 26 29 Slowest Speed 200 | 100 100 100 100 200 37 100 103 25 25 25 25 25 25 103 25 25 25 110 30 113 33 28 26 26 109 26 26 106 Overloaded Moves . | . . . . . . . . . . . . . . . . . . . . . . . . . . . . . Propulsion Burnouts . | . . . . . . . . . . . . . . . . . . . . . . . . . . . . . Robots Hopped 26 | . . . . 3 4 2 3 . . . . 5 . . . . . . . . . 4 . 2 . 2 . 1 Cave-ins Triggered . | . . . . . . . . . . . . . . . . . . . . . . . . . . . . . Exploration Rate (%) 67 | 4 99 98 42 94 81 87 67 97 95 88 98 40 91 83 71 70 2 83 25 86 66 95 66 27 96 37 6 51 Regions Visited 28 Branch Regions 17 Pre-discovered Areas 10 | . . 1 . 2 . . . 1 . 3 . . . 1 1 . . . . 1 . . . . . . . . Known Exits Taken 25 | . 1 1 1 1 1 1 1 1 1 1 1 1 1 1 1 1 1 . 1 1 1 1 1 1 . 1 1 . Unknown Exits Taken 1 | 1 . . . . . . . . . . . . . . . . . . . . . . . . . . . . Scrap Searched 24 | . . 1 . 2 . . . 3 1 5 3 . 3 1 . 1 . . . 2 1 . 1 . . . . . Spaces Dug 102 | . . . . . 9 20 . . . . . 5 1 . . . . . 7 2 . . . 9 . 7 1 41 Terrain Destroyed 1097 | . 213 99 . . 181 79 323 . . . . 5 1 . . 12 . . 32 2 . . . 9 . 7 23 111 Melee 73 | . . . . . . . . . . . . 5 1 . . . . . 7 2 . . . 9 . 7 1 41 Projectile . | . . . . . . . . . . . . . . . . . . . . . . . . . . . . . AOE 1024 | . 213 99 . . 181 79 323 . . . . . . . . 12 . . 25 . . . . . . . 22 70 Terrain Rammed . | . . . . . . . . . . . . . . . . . . . . . . . . . . . . . Walls Destroyed . | . . . . . . . . . . . . . . . . . . . . . . . . . . . . . Machines Disabled . | . . . . . . . . . . . . . . . . . . . . . . . . . . . . . Actions | -11 -10 -10 -10 -9 -8 -8 -7 -7 -7 -7 -6 -6 -6 -6 -6 -5 -5 -5 -4 -4 -4 -4 -3 -3 -3 -2 -1 -1 --------- Run | Scr Mat Min Exi Min Mat Sto Fac Low Low Zio Pro Fac Low Low Dat Pro Fac DSF Fac Upp Upp War Pro Res DSF Res Acc Com Total 47568 | 38 1594 1362 302 1032 2856 1516 5426 3098 2043 1864 2668 3832 2083 1591 369 1736 167 334 1917 2147 1424 1412 508 1636 217 1319 363 2714 Wait 20738 | . 659 660 53 442 1426 585 2093 2057 1156 558 1360 1196 1202 756 254 1002 111 136 776 1213 617 369 129 758 19 325 146 680 Move 24557 | 35 756 626 247 515 1247 792 3037 1006 864 1278 1185 2441 797 757 115 687 53 179 1038 864 747 1003 379 799 164 944 192 1810 Hop 23 | . . . . 3 4 2 3 . . . . 5 . . . . . . . . . 2 . 2 . 1 . 1 Pick Up 9 | . . . . . 1 . 1 . . . . . . . . . . . 1 . . . . 2 . . . 4 Fast Attach 130 | 3 6 1 1 7 19 8 9 . . 8 4 9 1 5 . 1 . 8 3 7 2 9 . 2 7 1 . 9 Attach 9 | . . . . . 2 . . . . . . . . . . . . . 1 . 1 1 . . . . . 4 Detach 8 | . . . . . 2 . . . . . 1 . . . . . . . . . 2 1 . . . . . 2 Swap 34 | . . . . . 3 4 5 . . . . 5 . 2 . . . 2 4 . . . . 6 . . . 3 Drop 113 | . 1 . 1 4 15 9 9 . . 8 3 8 . 4 . 1 . 9 3 2 1 8 . 5 4 . . 18 Fire 302 | . 172 64 . . 19 7 32 . . . . . . . . . . . 5 . . . . . . . . 3 Melee 1191 | . . . . 38 100 92 191 25 17 12 66 137 49 38 . 32 3 . 65 39 45 2 . 40 23 26 17 134 Ram . | . . . . . . . . . . . . . . . . . . . . . . . . . . . . . Kick . | . . . . . . . . . . . . . . . . . . . . . . . . . . . . . Crush . | . . . . . . . . . . . . . . . . . . . . . . . . . . . . . Escape Stasis 35 | . . . . . . . . . . . . . . . . . . . . . . . . . . . . 35 Rewire . | . . . . . . . . . . . . . . . . . . . . . . . . . . . . . Trap . | . . . . . . . . . . . . . . . . . . . . . . . . . . . . . Miscellaneous 419 | . . 11 . 23 18 17 46 10 6 . 49 31 34 29 . 13 . . 21 22 9 17 . 22 . 22 8 11 Route ------- -11/Scrapyard -10/Materials (discovered 4 exits: *Mat x3 / *Min) -10/Mines (discovered 3 exits: *Mat x2 / *Exi) -10/Exiles -9/Mines (discovered 2 exits: *Mat x2) -8/Materials (discovered 5 exits: *Fac x3 / *Sto / Gar) -8/Storage (discovered 3 exits: *Fac / [Rec] / Gar) -7/Factory (discovered 6 exits: *Fac x3 / *Low x2 / Gar) -7/Lower Caves -7/Lower Caves (discovered 2 exits: *Fac / *Zio) -7/Zion (discovered 2 exits: [Dee] / *Pro) -6/Proximity Caves -6/Factory (discovered 6 exits: *Fac x2 / *Low x2 / Ext x2) -6/Lower Caves -6/Lower Caves -6/Data Miner -5/Proximity Caves -5/Factory (discovered 4 exits: Fac x2 / Upp / DSF) -5/DSF -4/Factory (discovered 3 exits: *Res x2 / *Upp) -4/Upper Caves -4/Upper Caves (discovered 2 exits: *Res / *War) -4/Warlord -3/Proximity Caves -3/Research (discovered 3 exits: *Res / Arm / DSF) -3/DSF -2/Research -1/Access -1/Command (discovered 1 exit: [Sur]) History --------- Turn | Location | Event 6 | -11/Scrapyard | Discovered new exit (range 16) 40 | -11/Scrapyard | Entered Materials 212 | -10/Materials | Upgraded with Utility slot (x1) 309 | -10/Materials | Build established: Mutant 340 | -10/Materials | Upgraded with Propulsion slot (x1) 357 | -10/Materials | Discovered new exit (range 8) 692 | -10/Materials | Discovered new exit (range 13) 794 | -10/Materials | Discovered new exit (range 6) 1098 | -10/Materials | Discovered new exit (range 14) 1597 | -10/Materials | Reached level 2 1622 | -10/Materials | Upgraded with Utility slot (x1) 1623 | -10/Materials | Upgraded with Weapon slot (x1) 1632 | -10/Materials | Identified exit to Materials 1808 | -10/Materials | Identified exit to Mines 1809 | -10/Materials | Entered Mines 2043 | -10/Mines | Learned location of Storage (-8) 2434 | -10/Mines | Joined a pair of Derelicts in attacking an 0b10 outpost 2443 | -10/Mines | Upgraded with Utility slot (x1) 2488 | -10/Mines | Discovered exit to Materials (range 9) 2575 | -10/Mines | Assembled infested the area 2618 | -10/Mines | Destroyed 14 combat bots 2673 | -10/Mines | Reached level 3 2831 | -10/Mines | Learned Materials emergency access door positions 2873 | -10/Mines | Core integrity fell below 50% 2932 | -10/Mines | Deemed a non-threat by the Exiles lab entrance 2932 | -10/Mines | Discovered new exit (range 5) 2935 | -10/Mines | Identified exit to Exiles 2979 | -10/Mines | Discovered exit to Materials (range 15) 3236 | -10/Mines | Entered Exiles 3313 | -10/Exiles | Met 8R-AWN 3330 | -10/Exiles | Met EX-HEX 3372 | -10/Exiles | Met EX-BIN 3387 | -10/Exiles | Aligned with FarCom system 3388 | -10/Exiles | Given EX-Vault access code 3411 | -10/Exiles | Opened EX-Vault 3421 | -10/Exiles | Found Longsword +1 3442 | -10/Exiles | Warned to stay clear of 0b10 Research branches 3527 | -10/Exiles | Discovered new exit (range 14) 3537 | -10/Exiles | Identified exit to Mines 3538 | -10/Exiles | Left Exiles lab with Longsword +1 3538 | -10/Exiles | Entered Mines 3540 | -9/Mines | Reached level 4 3712 | -9/Mines | Discovered new exit (range 11) 3882 | -9/Mines | Received a Rocket Launcher from a helpful Derelict 3891 | -9/Mines | Learned location of Recycling (-8) 3891 | -9/Mines | Learned location of Zion (-7) 3903 | -9/Mines | Build established: Scavenger-Scout 4187 | -9/Mines | Discovered new exit (range 16) 4289 | -9/Mines | Upgraded with Weapon slot (x1) 4311 | -9/Mines | Identified exit to Materials 4313 | -9/Mines | Entered Materials 4315 | -8/Materials | Reached level 5 4315 | -8/Materials | Reached level 6 4315 | -8/Materials | Reached level 7 4614 | -8/Materials | Upgraded with Utility slot (x1) 4676 | -8/Materials | Discovered new exit (range 16) 4840 | -8/Materials | Upgraded with Utility slot (x1) 5052 | -8/Materials | Reached level 8 5062 | -8/Materials | Upgraded with Propulsion slot (x1) 5084 | -8/Materials | Upgraded with Utility slot (x1) 5151 | -8/Materials | Identified exit to Storage 5179 | -8/Materials | Upgraded with Propulsion slot (x1) 5584 | -8/Materials | Reached level 9 5588 | -8/Materials | Upgraded with Power slot (x1) 5670 | -8/Materials | Discovered new exit (range 13) 5685 | -8/Materials | Identified exit to Factory 5693 | -8/Materials | Identified exit to Garrison 5704 | -8/Materials | Upgraded with Weapon slot (x1) 5991 | -8/Materials | Discovered exit to Factory (range 16) 6045 | -8/Materials | Reached level 10 6257 | -8/Materials | Discovered exit to Factory (range 14) 6460 | -8/Materials | Entered Storage 6462 | -8/Storage | Reached level 11 6945 | -8/Storage | Identified exit to Garrison 6989 | -8/Storage | Build established: Hacker-Scout 7163 | -8/Storage | Met a pair of Derelict thieves 7269 | -8/Storage | Reached level 12 7352 | -8/Storage | Destroyed 10 combat bots 7355 | -8/Storage | Upgraded with Weapon slot (x1) 7357 | -8/Storage | Upgraded with Weapon slot (x1) 7361 | -8/Storage | Discovered new exit (range 10) 7477 | -8/Storage | Discovered exit to Factory (range 15) 7502 | -8/Storage | Entered Factory 7504 | -7/Factory | Reached level 13 7639 | -7/Factory | Discovered new exit (range 6) 7811 | -7/Factory | Reached level 14 7820 | -7/Factory | Identified exit to Factory 7838 | -7/Factory | Upgraded with Weapon slot (x1) 8040 | -7/Factory | Discovered new exit (range 9) 8070 | -7/Factory | Identified exit to Lower Caves 8190 | -7/Factory | Identified exit to Garrison 8204 | -7/Factory | Reached level 15 8996 | -7/Factory | Garrison activated, responded to threat 9260 | -7/Factory | Reached level 16 9415 | -7/Factory | Garrison activated, responded to threat 9450 | -7/Factory | Discovered exit to Factory (range 15) 9545 | -7/Factory | First assault squad dispatched 9558 | -7/Factory | Discovered exit to Lower Caves (range 4) 9767 | -7/Factory | Upgraded with Propulsion slot (x1) 9946 | -7/Factory | Destroyed 7 combat bots 9973 | -7/Factory | Upgraded with Utility slot (x1) 10149 | -7/Factory | Fabricated Force Field (x2) 10185 | -7/Factory | Reached level 17 10301 | -7/Factory | Fabricated Katana? 10479 | -7/Factory | Discovered exit to Factory (range 8) 10614 | -7/Factory | Fabricated L-41 Fighter? 10720 | -7/Factory | Fabricated T-07 Excavator (x1) 11051 | -7/Factory | Entered Lower Caves 11051 | -7/Lower Caves | Accompanied by 4 allies 11952 | -7/Lower Caves | Attracted the attention of an 0b10 outpost 12001 | -7/Lower Caves | Destroyed 8 combat bots 12008 | -7/Lower Caves | Discovered new exit (range 16) 12095 | -7/Lower Caves | Identified exit to Lower Caves 12374 | -7/Lower Caves | Learned Factory stockpile data 12969 | -7/Lower Caves | Encountered a Warlord checkpoint 13425 | -7/Lower Caves | Entered another Lower Caves area 13425 | -7/Lower Caves | Accompanied by 4 allies 13426 | -7/Lower Caves | Encountered a Warlord checkpoint 13472 | -7/Lower Caves | Discovered exit to Factory (range 16) 13816 | -7/Lower Caves | Reached level 18 13998 | -7/Lower Caves | Discovered new exit (range 16) 14015 | -7/Lower Caves | Identified exit to Zion 14285 | -7/Lower Caves | Learned 4 Factory zone layouts 14435 | -7/Lower Caves | Learned Factory terminal intel 14489 | -7/Lower Caves | Learned Factory stockpile data 14841 | -7/Lower Caves | Entered Zion 14841 | -7/Zion | Accompanied by 3 allies 15075 | -7/Zion | Found Prototype Processor 15075 | -7/Zion | Identified Exp. Targeting Computer 15078 | -7/Zion | Found Prototype Processor 15078 | -7/Zion | Identified Spectral Analyzer 15080 | -7/Zion | Found Prototype Processor 15080 | -7/Zion | Identified Exp. Target Analyzer 15130 | -7/Zion | Learned location of Warlord (-4) 15144 | -7/Zion | Learned Factory trap positions 15156 | -7/Zion | Received a hallucinogenic algorithm 15196 | -7/Zion | Learned location of Armory (-3) 15490 | -7/Zion | Discovered new exit (range 10) 15670 | -7/Zion | Rebuked by Imprinter 15684 | -7/Zion | Attempted to imprint without authorization 15684 | -7/Zion | Attacked by Zionites 15737 | -7/Zion | Spotted 92-820(B) 15739 | -7/Zion | Spotted AT-44Y(B) 15752 | -7/Zion | Discovered new exit (range 16) 15762 | -7/Zion | Identified exit to Proximity Caves 15762 | -7/Zion | Entered Proximity Caves 15763 | -6/Proximity Caves | Learned 4 Factory zone layouts 15841 | -6/Proximity Caves | Attracted the attention of an 0b10 outpost 15865 | -6/Proximity Caves | Core integrity fell below 50% 15910 | -6/Proximity Caves | Reached level 19 15941 | -6/Proximity Caves | Destroyed 18 combat bots 16296 | -6/Proximity Caves | Discovered exit to Factory (range 13) 16751 | -6/Proximity Caves | Spotted B-75 Beast 17583 | -6/Proximity Caves | Upgraded with Utility slot (x1) 17621 | -6/Proximity Caves | Entered Factory 17622 | -6/Factory | Identified exit to Lower Caves 17622 | -6/Factory | Identified exit to Factory 17622 | -6/Factory | Identified exit to Extension 17623 | -6/Factory | Loaded intel: 66 trap records 17625 | -6/Factory | Loaded intel: 27 terminal locations 17700 | -6/Factory | Identified exit to DSF 17876 | -6/Factory | Build established: Hacker-Ninja 18090 | -6/Factory | Reached level 20 18213 | -6/Factory | Fabricated D-83 Annihilator (x1) 18298 | -6/Factory | Discovered exit to Factory (range 15) 18746 | -6/Factory | Identified exit to DSF 18913 | -6/Factory | Central database locked down 18921 | -6/Factory | Identified exit to DSF 19159 | -6/Factory | Discovered exit to Extension (range 14) 19225 | -6/Factory | Cargo convoy interrupted 19371 | -6/Factory | First assault squad dispatched 19775 | -6/Factory | Entered Lower Caves 20300 | -6/Lower Caves | Spotted B-75 Beast 20320 | -6/Lower Caves | Discovered new exit (range 8) 20412 | -6/Lower Caves | Identified exit to Lower Caves 20413 | -6/Lower Caves | Reached level 21 20433 | -6/Lower Caves | Learned Factory security intel 20668 | -6/Lower Caves | Attracted the attention of an 0b10 checkpoint 20688 | -6/Lower Caves | Learned location of 1 exit from Factory 20831 | -6/Lower Caves | Learned location of 1 exit from Factory 21050 | -6/Lower Caves | Attracted the attention of an 0b10 outpost 21063 | -6/Lower Caves | Core integrity fell below 50% 21319 | -6/Lower Caves | Entered another Lower Caves area 21904 | -6/Lower Caves | Destroyed 8 combat bots 22176 | -6/Lower Caves | Spotted B-75 Beast 22314 | -6/Lower Caves | Discovered new exit (range 11) 22315 | -6/Lower Caves | Encountered a Warlord checkpoint 22395 | -6/Lower Caves | Identified exit to Data Miner 22395 | -6/Lower Caves | Entered Data Miner 22395 | -6/Data Miner | Discovered new exit (range 6) 22397 | -6/Data Miner | Identified exit to Proximity Caves 22401 | -6/Data Miner | Met Data Miner 22406 | -6/Data Miner | Acquired the access code to Warlord's prototype stash 22406 | -6/Data Miner | Learned location of Section 7 (-2) 22615 | -6/Data Miner | Received God Mode back door access code from Data Miner 22678 | -6/Data Miner | Entered Proximity Caves 23549 | -5/Proximity Caves | Discovered exit to Factory (range 7) 23786 | -5/Proximity Caves | Escorted by Enhanced Grunt 23795 | -5/Proximity Caves | Attracted the attention of an 0b10 base 23802 | -5/Proximity Caves | Reached level 22 23909 | -5/Proximity Caves | Learned 8 Factory zone layouts 23909 | -5/Proximity Caves | Learned Armory garrison access intel 23914 | -5/Proximity Caves | Destroyed 11 combat bots 23935 | -5/Proximity Caves | Entered Factory 23936 | -5/Factory | Identified exit to Upper Caves 23936 | -5/Factory | Identified exit to Factory 24066 | -5/Factory | Identified exit to DSF 24066 | -5/Factory | Entered DSF 24154 | -5/DSF | Additional patrols routed to DSF 24208 | -5/DSF | Upgraded with Propulsion slot (x1) 24270 | -5/DSF | Discovered exit to Factory (range 15) 24275 | -5/DSF | Entered Factory 24277 | -4/Factory | Reached level 23 24638 | -4/Factory | Reached level 24 24646 | -4/Factory | Upgraded with Utility slot (x1) 24776 | -4/Factory | Discovered new exit (range 20) 24845 | -4/Factory | Identified exit to Research 25058 | -4/Factory | First assault squad dispatched 25185 | -4/Factory | Incoming assault squad redirected 25341 | -4/Factory | Discovered exit to Research (range 10) 25347 | -4/Factory | Discovered new exit (range 24) 25422 | -4/Factory | Reached level 25 25433 | -4/Factory | Identified exit to Upper Caves 25553 | -4/Factory | Entered Upper Caves 25660 | -4/Upper Caves | Encountered a Warlord checkpoint 25662 | -4/Upper Caves | Attracted the attention of an 0b10 checkpoint 26377 | -4/Upper Caves | Discovered new exit (range 16) 26417 | -4/Upper Caves | Identified exit to Upper Caves 26754 | -4/Upper Caves | Attracted the attention of an 0b10 outpost 27149 | -4/Upper Caves | Entered another Upper Caves area 27151 | -4/Upper Caves | Build established: Scavenger-Ninja 27286 | -4/Upper Caves | Discovered exit to Research (range 20) 27636 | -4/Upper Caves | Learned location of 2 exits from Research 27637 | -4/Upper Caves | Attracted the attention of an 0b10 outpost 27680 | -4/Upper Caves | Learned Research garrison access intel 27918 | -4/Upper Caves | Destroyed 8 combat bots 27990 | -4/Upper Caves | Found Alien Artifact 27990 | -4/Upper Caves | Identified Dimensional Node Initializer 27990 | -4/Upper Caves | Initialized slip node 28022 | -4/Upper Caves | Discovered new exit (range 24) 28050 | -4/Upper Caves | Core integrity fell below 50% 28089 | -4/Upper Caves | Reached level 26 28098 | -4/Upper Caves | Identified exit to Warlord 28106 | -4/Upper Caves | Entered Warlord 28314 | -4/Warlord | Build established: Scavenger-Sprinter 28362 | -4/Warlord | Opened side exit 28386 | -4/Warlord | Visited the Vortex Lab 28389 | -4/Warlord | Found Prototype Energy Gun 28389 | -4/Warlord | Identified Vortex Rail 28408 | -4/Warlord | Warlord's base attacked by MAIN.C 28522 | -4/Warlord | Met Warlord 28529 | -4/Warlord | Opened Warlord's prototype stash 28531 | -4/Warlord | Found Prototype Reactor 28531 | -4/Warlord | Identified Vortex Chain Reactor 28539 | -4/Warlord | Found Prototype Hackware 28539 | -4/Warlord | Identified System Mapper 28541 | -4/Warlord | Found Prototype Device 28541 | -4/Warlord | Identified Thermal Barrier 28758 | -4/Warlord | Warlord forces counterattacked 28784 | -4/Warlord | Discovered new exit (range 9) 28787 | -4/Warlord | Identified exit to Proximity Caves 28787 | -4/Warlord | Entered Proximity Caves 28789 | -3/Proximity Caves | Attracted the attention of an 0b10 checkpoint 28833 | -3/Proximity Caves | Build established: Hacker-Sprinter 28918 | -3/Proximity Caves | Discovered exit to Research (range 22) 29015 | -3/Proximity Caves | Entered Research 29016 | -3/Research | Identified exit to Research 29016 | -3/Research | Identified exit to Armory 29017 | -3/Research | Loaded intel: 3 garrison access locations 29017 | -3/Research | Reached level 27 29308 | -3/Research | Build established: Hacker-Ninja 29425 | -3/Research | Found Exp. Shield Generator 29997 | -3/Research | Reached level 28 30107 | -3/Research | Identified exit to DSF 30107 | -3/Research | Entered DSF 30154 | -3/DSF | Discovered exit to Research (range 12) 30163 | -3/DSF | Additional patrols routed to DSF 30207 | -3/DSF | Found Prototype Device 30207 | -3/DSF | Identified Active Sensor Suite 30221 | -3/DSF | Upgraded with Utility slot (x1) 30234 | -3/DSF | Entered Research 30234 | -2/Research | Warlord forces began assault on 0b10 30236 | -2/Research | Reached level 29 30344 | -2/Research | Research machine network offline 30414 | -2/Research | Spotted B-90 Cyclops 30509 | -2/Research | Reached level 30 30509 | -2/Research | Met up with Warlord 30809 | -2/Research | Took control of God Mode 30809 | -2/Research | Reached level 31 30809 | -2/Research | Attacked by Warlord forces 30809 | -2/Research | Attacked by Warlord 30809 | -2/Research | Spotted OP-SMR(B) 30809 | -2/Research | Spotted PB-JT3(K) 30809 | -2/Research | Spotted C2-MYD(K) 30809 | -2/Research | Spotted AB-VF3(H) 30811 | -2/Research | Spotted K9-0EU(H) 30822 | -2/Research | Spotted Striker 30826 | -2/Research | Spotted B-90 Cyclops 30881 | -2/Research | Discovered new exit (range 4) 30883 | -2/Research | Identified exit to Access 30884 | -2/Research | Entered Access 30886 | -1/Access | Reached level 32 31072 | -1/Access | Discovered new exit (range 22) 31125 | -1/Access | Identified exit to Command 31125 | -1/Access | Entered Command 31127 | -1/Command | Reached level 33 31127 | -1/Command | Reached level 34 31223 | -1/Command | Spotted M Guard 31223 | -1/Command | Spotted M Guard 31223 | -1/Command | Spotted Combat Programmer 31238 | -1/Command | Spotted Combat Programmer 31442 | -1/Command | Met MAIN.C 31450 | -1/Command | 0b10 Conduit disabled 31549 | -1/Command | System corruption reached 10% 31560 | -1/Command | Destroyed Combat Programmer 31580 | -1/Command | Reached level 35 31580 | -1/Command | Destroyed Combat Programmer 31853 | -1/Command | Spotted B-99 Colossus 31861 | -1/Command | Core integrity fell below 50% 31917 | -1/Command | Search patrols dispatched 31933 | -1/Command | Phase Generator disabled 32189 | -1/Command | Build established: Infiltrator-Ninja 32428 | -1/Command | Disengaged cave seal 32561 | -1/Command | Discovered new exit (range 23) 32562 | -1/Command | Spotted Alpha 7 32562 | -1/Command | Spotted Striker 32562 | -1/Command | Spotted Executioner 32562 | -1/Command | Spotted Executioner 32562 | -1/Command | Spotted Striker 32562 | -1/Command | Spotted Executioner 32562 | -1/Command | Spotted Executioner 32562 | -1/Command | Spotted Alpha 7 32625 | -1/Command | Search patrols dispatched 32700 | -1/Command | Core integrity fell below 20% 32707 | -1/Command | Spotted B-99 Colossus 32710 | -1/Command | Destroyed by P-80 Master with Gamma Rifle Last Messages --------------- 32706_ Penetrated by Slug. 32706_ Slug penetrates Striker. 32706_ Penetrated by Slug. 32706_ Slug penetrates Striker. 32706_ Penetrated by Slug. 32706_ Slug penetrates Wall. 32706_ Slug penetrates Reinforced Barrier. 32707_ Slug penetrates Striker. 32707_ Triggered Stasis Trap. 32707_ A bubble of rippling energy engulfs the area. 32707_ Field strength at 95. 32707_ Field strength at 90. 32708_ Penetrated by Slug. 32708_ Field strength at 69. 32709_ Penetrated by Slug. 32709_ Field strength at 35. 32709_ Penetrated by Slug. 32709_ Slug penetrates Executioner. [Achievement: Back For More] [Achievement: This Is Interesting...] Map ----- +----------------------------------------------------+ | + ########### ""### ## | | + # ## ### ## | | + # ## ### ##### | | + %= #"" ## ### ##### | | + = #"" ###+####"########/##### | | ## ######## % ##"" # " !!!% # | | ## ##?##### ##T + # !!!! # | | ############# ##"" = # / !! # | | ?############ ##"" + " = ] # ! | | ############# ##"" * ###### " # ! | | #?###?####### ## ###### = " # ! | | ############# ## ###### %!%= T"" # | | ############# ## ## ### ! *! """ # ^ | | ##?#####?#### ## ######### # # !! " ####" ## | | ?###"######## #"#########;%"""*%= = "" ###""# | | ###" ## !% %[ % | | #### ## %! === = = | | #### w%## = ! | | ?###! +% !* * | | #######+#"#############pY% ##"""""+####+#####"###" | | ####### # ####### %s;###### ######### | | ######" # #######///s;###### ######### | | ####### # !###### / ###### "" ######### | | ###### # #?####7 ssK ;##### """ ######### | | ?###?# # = ##### ^K E 7##### "T ######### | | ###### # ###### ^ @ ###### """ ######### | | ?##### # ##### ^ ^ ##### "" ######### | | ###### # ###### ^ ###### ######### | | ###### # ##### ^ ^ ##### #######?# | | ###### + ######E ^ E###### ######### | | ?##### # "" ##### ##### ######### | | ###### # """ ###### ####################?# | | ###?## # R" =### BB################### | | ###### # """ ### B BB################### | | ###### # "" ### ^ ^ ################### | | ###### # ### """""" ################?## | | ###### # ### " " ################??# | | ?####" #####/##### ^" "" "^ ##############?#### | | ###### ##### ##### " "< " ##################? | | ### ##### ##### " " ##################? | | ### ##### ##### """""" #################?# | | ### ##### #################?# | | #|#### ##### ##### ##############?##?# | | %! " ##### ##### ################### | | =*! " ### ################################### | | =%! + "" ##########################?#######? | | = " ### " #################### ############# | | # #### ### ################################### | | ! ### #### ########### = [ ############? | | =%!### #### !####"###### ############# | +----------------------------------------------------+ Best States ------------- Heat Dissipation 49 Energy Generation 70 Energy Capacity 700 Matter Stores 300 Matter Capacity 300 Sight Range 18 Terrain Scan Range 24 Terrain Scan Density 710 ECM Strength 2 Jamming Range 16 Cloak Strength 2 Armor Coverage 225 Resistance: KI 40 Resistance: TH 70 Resistance: EX 20 Resistance: EM 20 Resistance: I 20 Resistance: S 20 Resistance: P 20 Utility Shielding 66 Evasion (%) 76 Targeting Accuracy 5 Melee Accuracy 10 Force Boost 20 Offensive Hacking 30 Defensive Hacking 20 Item Schematics ----------------- Katana | -8/Materials | Scanalyzed System Restoration Module | -8/Materials | Scanalyzed Gravmag Array | -8/Storage | Hacked Imp. Terrain Scan Processor | -8/Storage | Hacked Hardlight Generator | -8/Storage | Hacked Linear Gravjet | -7/Factory | Hacked Force Field | -7/Factory | Hacked Flexi-carbon Leg | -7/Factory | Hacked Plasma Rifle | -7/Zion | Archive Adv. Terrain Scan Processor | -7/Zion | Archive Mak. Axe | -7/Zion | Archive Power Amplifier | -7/Zion | Archive Adv. Melee Analysis Suite | -7/Zion | Archive Imp. Trap Extractor | -7/Zion | Archive Point Defense System | -7/Zion | Archive Imp. Kinecellerator | -7/Zion | Archive Hvy. Riot Gun | -7/Zion | Archive Mak. Hover Unit | -7/Zion | Archive Lgt. Angular Momentum Engine | -7/Zion | Archive Mak. Leg | -7/Zion | Archive Mak. Flight Unit | -7/Zion | Archive Mni. Drone Bay | -6/Factory | Hacked Particle Reactor | -6/Data Miner | Free Adv. Component Analysis Suite | -6/Data Miner | Free Arm. Medium Treads | -6/Data Miner | Free Force Lance | -6/Data Miner | Free Myomer Leg | -6/Data Miner | Free Adv. Particle Charger | -6/Data Miner | Free Tiamat Missile Launcher | -6/Data Miner | Free Imp. Matter Compressor | -6/Data Miner | Free Enh. Armored Leg | -6/Data Miner | Free Lgt. Regenerative Plating | -6/Data Miner | Free Combat Drone Bay | -6/Data Miner | Free Robot Schematics ------------------ T-07 Excavator | -7/Factory | Hacked L-31 Rogue | -7/Zion | Archive M-14 Sweeper | -7/Zion | Archive L-41 Fighter | -7/Zion | Archive D-83 Annihilator | -7/Zion | Archive B-48 Gladiator | -6/Data Miner | Free A-15 Conveyor | -6/Data Miner | Free H-66 Slayer | -6/Data Miner | Free S-27 Virus | -6/Data Miner | Free E-15 Imp | -6/Data Miner | Free Fabricated ------------ Force Field | x2 | -7/Factory Katana | x2 | -7/Factory L-41 Fighter | x3 | -7/Factory | Preloaded T-07 Excavator | x1 | -7/Factory D-83 Annihilator | x1 | -6/Factory Alien Tech Used ----------------- Dimensional Node Initializer Achievements -------------- A Powerful Ally? Adventurer Alien Tech All-out Warlord Ambidextrous Armchair Analyst Assassin Back For More Can't Catch Me Charge!!! Deadly Force Denied? Dodgeball, But With Guns Executioner Explorer Exterminator Gladiator Godhack It Was An Accident, I Swear Knowing Is Half The Battle Meet Your Maker Melee Specialist My Command Is Your Wish Reappropriation Slippery One This Is Interesting... Treasure Hunter root@ Challenges ------------ None RPGLIKE | -11 -10 -10 -10 -9 -8 -8 -7 -7 -7 -7 -6 -6 -6 -6 -6 -5 -5 -5 -4 -4 -4 -4 -3 -3 -3 -2 -1 -1 --------- Run | Scr Mat Min Exi Min Mat Sto Fac Low Low Zio Pro Fac Low Low Dat Pro Fac DSF Fac Upp Upp War Pro Res DSF Res Acc Com Levels Raised 34 | . 1 1 . 1 6 2 5 . 1 . 1 1 1 . . 1 . . 3 . 1 . . 2 . 3 1 3 XP Earned 55241 | 4000 1560 2240 350 1734 8239 3666 7003 437 382 105 1634 2412 592 290 105 1065 555 426 3305 649 799 234 699 2092 622 4258 2456 3332 XP Spent 54730 | . 2440 1100 . 1500 10460 3300 7300 . . 550 3100 . . 2900 . . . 1700 2900 . . 3710 . . 3200 . 910 9660 Upgrades 94 | . 6 1 . 3 13 3 4 . . 1 2 . . 2 . . . 1 1 . . 9 . . 1 . 5 42 Power Slot 1 | . . . . . 1 . . . . . . . . . . . . . . . . . . . . . . . Propulsion Slot 5 | . 1 . . . 2 . 1 . . . . . . . . . . 1 . . . . . . . . . . Utility Slot 10 | . 2 1 . . 3 . 1 . . . 1 . . . . . . . 1 . . . . . 1 . . . Weapon Slot 6 | . 1 . . 1 1 2 1 . . . . . . . . . . . . . . . . . . . . . Core Integrity 42 | . . . . . . . . . . . . . . . . . . . . . . . . . . . . 42 Heat Dissipation 4 | . . . . . 3 . . . . . . . . . . . . . . . . 1 . . . . . . Energy Generation 3 | . . . . . 1 . . . . 1 . . . 1 . . . . . . . . . . . . . . Mass Support 5 | . . . . 2 1 . 1 . . . . . . 1 . . . . . . . . . . . . . . Inventory Capacity 2 | . . . . . 1 . . . . . 1 . . . . . . . . . . . . . . . . . Sight Range 2 | . . . . . . . . . . . . . . . . . . . . . . . . . . . 2 . Terrain Scan Density 5 | . 2 . . . . . . . . . . . . . . . . . . . . . . . . . 3 . Melee Accuracy 1 | . . . . . . 1 . . . . . . . . . . . . . . . . . . . . . . KI Resistance % 4 | . . . . . . . . . . . . . . . . . . . . . . 4 . . . . . . TH Resistance % 4 | . . . . . . . . . . . . . . . . . . . . . . 4 . . . . . . Protomatter Created 6540 | . . 159 . 159 278 359 920 155 82 . 520 1033 300 442 . 103 . . 229 615 281 . . 380 41 61 192 231 Integrity Restored 8050 | . . 216 . 477 344 282 753 186 104 . 1044 502 714 507 . 288 . . 455 397 137 387 . 409 . 441 152 255 Core 6551 | . . 216 . 477 247 209 607 141 98 . 823 371 669 289 . 288 . . 315 309 110 387 . 278 . 345 117 255 Parts 1499 | . . . . . 97 73 146 45 6 . 221 131 45 218 . . . . 140 88 27 . . 131 . 96 35 . Protomatter Decayed 7684 | . 45 47 . . 158 302 655 166 46 . 159 1212 56 263 . 22 . . 129 471 231 624 45 237 41 2017 139 619 Game ------ Seed PrecisionBurstLoader Manual? 0 Play Time 07:01:18 Cumulative 46.1 hours Start 2022.09.25 @ 01:07:15 End 2022.09.25 @ 14:35:41 Sessions 3 Manual Loads 0 Difficulty Adventurer Special Mode Winter2019/RPGLIKE Game No. 50 Rogue 30 Adventurer 20 Explorer 0 Win Type - Total 0 Types 0/0/0/0/0/0/0/0/0 Lore% 30 Gallery% 32 Achievement% 39 Wizard Run 0 Options --------- ASCII 0 Keyboard 0 Movement Mouse Keybinds 0 Fullscreen 2 Font 24/Crisp Map View 76x50 Tactical HUD 1 Map Filters NONE Filters NONE Steam 1 RUN: 5cb56177-a1bd-4948-bf28-4a8f66d5f569